bitfinex/quotes_ETHUSD_20260114
["timestamp","ask_amount","ask_price","bid_price","bid_amount"]
[1768386199556,6.0455837,3308.2,3306.3,1.37418859]
[1768386199756,4.27540861,3309.3,3306.9,1.37418859]
[1768386199962,6.50907111,3309.2,3307.2,1.2823823]
[1768386200161,6.47129764,3309.2,3307.3,1.6973823]
[1768386200365,0.03777462,3309.1,3307.3,1.6973823]
[1768386200561,1.25356213,3309.1,3305.9,1.37418859]
[1768386200792,1.29133675,3309.1,3306.5,1.37418859]
[1768386200967,2.63420125,3309.0,3306.5,1.37418859]
[1768386201180,1.29133903,3308.9,3306.5,1.37418859]
[1768386201379,10.32029326,3308.8,3306.6,9.07276356]
[1768386201701,0.03777918,3308.7,3306.7,0.414]
[1768386202062,0.03777918,3308.7,3306.7,1.78818859]
[1768386202274,0.77136205,3308.7,3306.8,2.67090297]
[1768386202602,0.77136205,3308.7,3306.9,1.2823823]
[1768386203497,9.0672792,3308.6,3307.1,3.02379728]
[1768386203668,0.03778147,3308.5,3307.1,3.02379728]
[1768386204018,0.03778147,3308.5,3307.1,6.04759456]
[1768386204295,0.03778147,3308.5,3307.2,0.58721011]
[1768386204464,6.08263313,3308.6,3307.2,0.58721011]
[1768386204659,10.35862166,3308.6,3307.3,0.414]
[1768386204886,10.32084133,3308.6,3307.3,0.414]
[1768386205070,7.29841493,3308.6,3307.1,6.04759456]
[1768386205277,0.80319978,3308.5,3307.2,0.415]
[1768386205474,6.04521822,3308.4,3307.2,3.0237058]
[1768386205671,6.08300083,3308.4,3307.3,3.43859907]
[1768386205895,3.06039172,3308.4,3307.3,6.46221349]
[1768386206377,6.08300083,3308.4,3307.3,3.43859907]
[1768386206577,6.8969771,3308.4,3307.3,0.415]
[1768386206892,6.85919449,3308.4,3307.3,3.42447938]
[1768386207065,0.03778375,3308.3,3307.4,0.415]
[1768386207473,0.03778375,3308.3,3307.3,3.02361411]
[1768386207474,6.0455837,3308.2,3307.5,0.415]
[1768386207696,0.03778604,3308.1,3306.5,1.2823823]
[1768386207910,1.89590654,3308.1,3306.7,3.02410923]
[1768386208210,1.89590654,3308.1,3306.8,3.02405867]
[1768386208578,6.0455837,3308.2,3307.0,1.2823823]
[1768386208912,6.0455837,3308.2,3307.1,0.415]
[1768386208913,0.03778604,3308.1,3307.1,0.415]
[1768386209118,0.03778604,3308.1,3307.2,0.415]
[1768386209407,0.03778604,3308.1,3307.0,1.2823823]
[1768386209574,3.0229746,3308.0,3307.2,3.02370585]
[1768386209907,0.09180629,3308.6,3307.2,3.02370585]
[1768386209908,0.51934715,3309.2,3307.3,1.31261844]
[1768386210085,0.09180629,3309.0,3307.3,1.31261844]
[1768386210291,0.0377769,3308.9,3307.4,1.6973823]
[1768386210605,0.0377769,3308.9,3307.5,1.2823823]
[1768386210797,0.0377769,3308.9,3307.7,1.2823823]
[1768386211696,3.02224371,3308.8,3307.8,6.04631476]
[1768386211901,3.02224371,3308.8,3307.8,7.32869706]
[1768386212087,0.09180629,3308.3,3307.2,1.75449112]
[1768386212406,0.03778489,3308.2,3307.3,3.43857696]
[1768386212616,0.03778489,3308.2,3307.4,3.02348553]
[1768386213012,0.03778489,3308.2,3307.3,3.43857736]
[1768386213186,0.03778147,3308.5,3307.3,0.415]
[1768386213510,0.09180629,3308.4,3307.3,0.415]
[1768386213815,6.08318471,3308.3,3307.3,0.415]
[1768386214024,7.00293768,3308.3,3307.3,3.43858626]
[1768386214310,6.96515393,3308.3,3307.3,3.43858626]
[1768386214515,6.96515393,3308.3,3307.3,3.02358626]
[1768386214715,6.96515393,3308.3,3307.4,0.415]
[1768386214916,3.94245345,3308.3,3307.4,0.415]
[1768386215218,3.02270048,3308.3,3307.4,0.415]
[1768386215427,3.02270048,3308.3,3307.4,0.44523523]
[1768386215627,6.0448528,3308.6,3307.5,0.415]
[1768386215843,0.95851311,3308.5,3307.5,0.415]
[1768386216010,0.92073164,3308.4,3307.5,3.43839776]
[1768386216205,6.0448528,3308.6,3307.6,0.0302334]
[1768386216524,1.5722112,3308.5,3307.5,3.43839776]
[1768386216697,0.61366591,3308.5,3307.5,3.43839776]
[1768386217330,0.92119769,3308.4,3307.5,3.43839776]
[1768386217627,0.79481508,3308.9,3307.7,4.21447202]
[1768386217927,0.92128454,3308.8,3307.7,3.02324878]
[1768386218127,0.92128269,3308.7,3307.8,0.415]
[1768386218332,0.03778033,3308.6,3307.9,0.415]
[1768386219205,0.03777918,3308.7,3307.9,0.415]
[1768386220328,0.03777918,3308.7,3307.9,4.62925192]
[1768386220529,6.04430474,3308.9,3307.9,1.60622324]
[1768386220730,0.95925496,3308.8,3307.9,1.19122324]
[1768386221026,0.95925496,3308.8,3308.0,1.60622324]
[1768386221027,0.03777804,3308.8,3308.0,1.60622324]
[1768386221607,3.02196971,3309.1,3308.0,1.60622324]
[1768386221911,0.95934437,3309.0,3308.1,1.19122324]
[1768386222119,0.03777576,3309.0,3308.1,1.19122324]
[1768386222310,3.05986901,3309.0,3308.2,3.02279185]
[1768386222513,0.27887705,3308.9,3308.2,3.02279185]
[1768386222699,6.08196226,3309.0,3308.1,4.21406413]
[1768386222907,6.74708505,3309.0,3308.1,4.21406413]
[1768386223105,0.2788851,3308.9,3308.1,4.21406413]
[1768386223405,6.70930929,3309.0,3308.1,1.19122324]
[1768386223656,0.09180629,3308.3,3307.0,0.002]
[1768386223802,0.09180629,3308.3,3307.1,3.02373492]
[1768386223803,0.31658307,3308.2,3307.1,3.02373492]
[1768386224139,0.83259541,3308.6,3307.2,3.43868485]
[1768386224427,7.00402066,3308.5,3307.2,3.43868485]
[1768386224630,7.00402066,3308.5,3307.3,6.04722884]
[1768386224631,0.92120369,3308.4,3307.3,6.04722884]
[1768386224833,3.06029922,3308.5,3307.3,6.04722884]
[1768386225022,0.27883853,3308.4,3307.4,0.64622288]
[1768386225202,3.06029922,3308.5,3307.4,0.64622288]
[1768386225402,0.92136362,3308.4,3307.4,0.64622288]
[1768386225621,3.06029922,3308.5,3307.4,0.64622288]
[1768386225622,6.0450355,3308.5,3307.4,0.64622288]
[1768386225822,0.92136225,3308.4,3307.4,0.64622288]
[1768386226025,6.0450355,3308.5,3307.4,0.64622288]
[1768386226334,3.02270048,3308.3,3307.5,3.02343159]
[1768386226827,3.02270048,3308.3,3307.5,6.04686318]
[1768386227032,3.02264371,3308.4,3307.5,6.04686318]
[1768386227234,0.27891769,3308.3,3307.5,6.04686318]
[1768386227437,3.06042632,3308.4,3307.5,6.04686318]
[1768386227638,0.27891701,3308.3,3307.5,6.04686318]
[1768386227930,6.08307003,3308.4,3307.4,3.02348126]
[1768386228131,1.59028014,3308.3,3307.4,3.02348126]
[1768386228323,3.30170147,3308.2,3307.3,6.0472269]
[1768386228628,3.02279185,3308.2,3307.3,6.0472269]
[1768386229332,3.0224264,3308.6,3307.4,0.415]
[1768386229632,0.95940508,3308.5,3307.4,0.415]
[1768386229843,0.92162361,3308.4,3307.4,0.415]
[1768386230001,0.27894403,3308.3,3307.4,0.415]
[1768386230200,0.51554613,3308.5,3307.4,0.415]
[1768386230201,3.53809123,3308.5,3307.5,6.04686318]
[1768386230413,3.02337704,3308.7,3307.5,6.06952327]
[1768386230714,0.95950909,3308.6,3307.5,6.04686318]
[1768386230922,0.27897706,3308.5,3307.5,6.04686318]
[1768386231124,0.03778033,3308.6,3307.5,6.04686318]
[1768386231328,0.03778033,3308.6,3307.5,6.81217182]
[1768386231727,0.03778033,3308.6,3307.5,8.00339506]
[1768386232045,3.02237704,3308.7,3307.5,8.00339506]
[1768386232342,3.30142803,3308.6,3307.5,8.00339506]
[1768386232548,6.04490418,3308.6,3307.5,8.00339506]
[1768386232754,6.6493946,3308.6,3307.5,8.00339506]
[1768386232948,3.62694251,3308.6,3307.6,0.415]
[1768386233248,0.60449042,3308.6,3307.6,0.415]
[1768386233450,3.02235209,3308.7,3307.6,0.415]
[1768386233633,0.27897234,3308.6,3307.6,0.4452334]
[1768386233836,3.02220961,3308.9,3307.7,1.19122324]
[1768386234237,3.02220961,3308.9,3307.8,6.04631476]
[1768386234440,3.02220961,3308.9,3307.8,7.237538]
[1768386234638,3.02220961,3308.9,3307.9,0.60545182]
[1768386234827,3.02220961,3308.9,3307.9,1.79667506]
[1768386235149,3.68722122,3309.0,3307.9,1.79667506]
[1768386235350,3.02151317,3309.6,3308.0,1.22145298]
[1768386235655,3.02151317,3309.6,3308.2,1.19122324]
[1768386235656,0.37076822,3309.5,3308.2,1.19122324]
[1768386235854,0.88249297,3309.5,3308.3,0.16062232]
[1768386236434,3.90412519,3309.5,3308.4,6.04521822]
[1768386236639,3.90412519,3309.5,3308.5,0.415]
[1768386236845,6.92575741,3309.5,3308.5,0.415]
[1768386237046,6.91062005,3309.5,3308.5,0.415]
[1768386237353,0.70619937,3309.4,3308.5,0.415]
[1768386237558,3.03676958,3309.5,3308.5,0.415]
[1768386237759,0.01513736,3309.5,3308.5,0.415]
[1768386237922,0.09180629,3309.6,3308.5,0.415]
[1768386238122,0.10694365,3309.7,3308.5,0.415]
[1768386238317,0.01513736,3309.7,3308.7,6.0446701]
[1768386238953,0.01513736,3309.7,3308.7,7.68024134]
[1768386239248,3.12810272,3310.0,3308.7,10.70257639]
[1768386239457,0.01513736,3309.9,3308.7,10.70257639]
[1768386239765,3.0210972,3310.1,3308.8,1.19122324]
[1768386239933,3.0210972,3310.1,3309.0,1.19122324]
[1768386239934,0.61500852,3310.1,3309.0,1.19122324]
[1768386240125,3.03703533,3310.3,3309.1,0.415]
[1768386240455,0.001,3310.3,3309.2,1.19122324]
[1768386240636,0.001,3310.3,3309.3,6.04357416]
[1768386241032,0.001,3310.3,3309.4,1.19122324]
[1768386241223,0.09180629,3309.8,3308.9,0.76530864]
[1768386241425,0.09180629,3309.6,3309.1,3.02189211]
[1768386241651,0.09180629,3309.6,3309.2,0.415]
[1768386242026,0.09180629,3309.6,3309.3,0.415]
[1768386242767,0.09180629,3309.4,3308.8,3.02219366]
[1768386242949,0.09180629,3309.2,3308.9,0.415]
[1768386243126,0.09180629,3309.4,3309.0,0.415]
[1768386243324,1.33e-06,3309.4,3309.0,0.415]
[1768386243629,1.33e-06,3309.4,3308.5,6.0450355]
[1768386243630,0.09180629,3309.2,3308.5,3.02251775]
[1768386243829,0.09180629,3309.2,3308.6,0.415]
[1768386244767,0.09180629,3309.2,3308.7,3.02233505]
[1768386244961,1.33e-06,3309.4,3308.7,6.0446701]
[1768386245170,1.33e-06,3309.4,3308.7,3.02233505]
[1768386245582,1.33e-06,3309.4,3308.7,6.0446701]
[1768386246353,6.04247862,3309.9,3308.8,0.03022243]
[1768386246555,6.04247862,3309.9,3308.7,6.7526949]
[1768386246865,3.02139225,3309.8,3308.7,6.7526949]
[1768386247181,3.02139225,3309.8,3308.8,0.03022243]
[1768386247382,0.09180629,3310.0,3308.8,0.03022243]
[1768386247590,0.001,3310.3,3308.9,0.48650572]
[1768386247794,0.01613736,3310.3,3309.0,0.03022061]
[1768386248087,0.001,3310.3,3309.1,0.415]
[1768386248995,0.001,3310.3,3309.2,10.25880734]
[1768386249151,0.001,3310.3,3309.2,10.22858856]
[1768386249357,0.001,3310.3,3309.3,0.78120026]
[1768386250176,0.001,3310.3,3309.3,1.94415365]
[1768386250377,0.001,3310.3,3309.4,1.16295339]
[1768386250577,0.10694365,3311.1,3309.4,1.16295339]
[1768386250780,0.09180629,3310.9,3309.4,1.16295339]
[1768386250956,0.10694365,3310.9,3309.6,9.06453951]
[1768386251290,0.09180629,3310.9,3309.7,1.16295339]
[1768386251483,0.09180629,3310.7,3309.7,0.414]
[1768386251854,0.09180629,3310.5,3309.6,3.02151317]
[1768386252061,0.09180629,3310.5,3309.5,3.02160201]
[1768386252062,0.09180629,3310.3,3309.5,3.02160201]
[1768386252252,0.09180629,3310.3,3309.6,0.414]
[1768386252459,7.26344081,3311.0,3309.7,0.414]
[1768386252674,0.10694365,3310.9,3309.7,0.414]
[1768386252984,3.11195781,3311.1,3309.7,1.57695339]
[1768386252985,3.11198628,3311.1,3309.7,1.57695339]
[1768386253186,0.09180629,3310.7,3309.8,6.04266118]
[1768386253391,1.31463042,3310.8,3309.9,0.414]
[1768386253595,1.22282413,3311.0,3310.0,0.64566612]
[1768386253889,0.09180629,3311.0,3310.0,0.64566612]
[1768386254387,0.09180629,3310.7,3309.3,1.16295339]
[1768386254581,1.31463042,3310.6,3309.7,3.02138824]
[1768386255089,1.31463042,3310.6,3309.9,3.02123931]
[1768386255090,3.11241095,3310.6,3309.9,3.02123931]
[1768386255461,0.09180629,3310.6,3309.9,6.04247862]
[1768386255658,3.02032679,3310.9,3309.9,6.04247862]
[1768386255881,0.09180629,3310.7,3309.9,6.04247862]
[1768386256288,3.75736639,3310.9,3309.9,6.04247862]
[1768386256475,4.24307578,3311.0,3309.9,6.04247862]
[1768386256988,1.22282413,3310.9,3310.0,0.414]
[1768386257194,1.22282413,3310.9,3310.1,6.04211352]
[1768386257484,1.22282413,3311.2,3310.1,6.68772487]
[1768386257660,3.01987074,3311.4,3310.1,9.70878163]
[1768386257859,3.03492832,3311.5,3310.2,1.16295339]
[1768386258064,1.31463042,3312.1,3310.4,1.16295339]
[1768386258264,1.31463042,3312.1,3310.5,0.414]
[1768386258800,1.22282413,3312.0,3310.6,0.414]
[1768386259096,3.01895906,3312.4,3311.1,6.04028872]
[1768386259264,3.01895906,3312.4,3311.2,0.90050572]
[1768386259663,0.09180629,3312.1,3311.3,0.414]
[1768386260696,0.09180629,3312.3,3311.3,0.414]
[1768386261208,6.03791812,3312.4,3311.4,3.01987074]
[1768386261893,6.03791812,3312.4,3311.3,3.43395456]
[1768386262203,7.22112808,3312.4,3311.3,3.43395456]
[1768386262370,8.25430394,3312.4,3311.3,3.43395456]
[1768386262776,8.25430394,3312.4,3311.3,0.414]
[1768386262971,8.25430394,3312.4,3311.3,3.43395602]
[1768386263402,8.25430394,3312.4,3311.3,6.45391796]
[1768386263610,4.20216902,3312.4,3311.3,6.45391796]
[1768386263921,3.01895906,3312.4,3311.3,6.45391796]
[1768386264275,3.01895906,3312.4,3311.3,7.70024312]
[1768386264514,3.01877679,3312.6,3311.3,7.70024312]
[1768386265006,6.03755358,3312.6,3311.4,1.24632516]
[1768386265220,1.18320996,3312.7,3311.6,3.01968836]
[1768386265708,1.27501625,3312.7,3311.7,0.414]
[1768386266274,0.002,3312.1,3311.7,0.414]
[1768386266475,3.01859454,3312.8,3311.7,0.414]
[1768386266788,0.002,3312.4,3311.7,0.414]
[1768386266989,0.002,3312.4,3311.8,0.36209276]
[1768386267189,0.002,3312.4,3311.9,3.01941483]
[1768386267676,0.002,3312.4,3311.9,6.03882966]
[1768386267881,0.002,3312.4,3311.9,3.01941483]
[1768386268083,0.002,3312.4,3312.0,0.414]
[1768386268706,0.002,3312.4,3312.0,0.79355745]
[1768386269506,0.002,3312.4,3312.1,3.01923251]
[1768386269716,3.01841231,3313.0,3312.1,3.01923251]
[1768386269914,6.03573152,3313.6,3312.2,1.24632516]
[1768386270208,1.18320996,3313.5,3312.3,0.72847902]
[1768386270580,1.27501625,3313.3,3312.4,0.414]
[1768386271279,1.18320996,3313.5,3312.4,0.414]
[1768386271502,6.03609584,3313.4,3312.4,3.43288983]
[1768386274477,1.27501625,3313.3,3312.5,0.414]
[1768386274679,1.18320996,3313.1,3312.5,0.414]
[1768386276115,1.18320996,3313.1,3311.6,1.22453541]
[1768386276116,7.21640285,3313.0,3311.6,1.22453541]
[1768386276314,1.1807936,3312.9,3311.7,0.44419597]
[1768386276625,6.03560925,3313.0,3312.1,3.01920615]
[1768386276911,3.01719694,3313.0,3312.2,0.44419141]
[1768386277211,1.1807936,3313.5,3312.5,3.01886792]
[1768386277212,3.01804792,3313.4,3312.5,3.01886792]
[1768386277383,0.09380629,3313.8,3312.6,0.03018776]
[1768386277384,0.002,3313.8,3312.6,0.03018776]
[1768386277582,1.1807936,3314.6,3313.0,9.94510505]
[1768386277812,1.1807936,3314.6,3313.1,0.99451051]
[1768386278014,6.03409262,3314.5,3313.2,0.414]
[1768386278201,6.03409262,3314.5,3313.3,6.03627802]
[1768386278608,3.01704631,3314.5,3313.3,7.26081343]
[1768386278807,3.01704631,3314.5,3313.4,1.22453541]
[1768386279008,1.1807936,3314.9,3313.5,1.95061675]
[1768386279311,6.0330005,3315.1,3313.6,1.22453541]
[1768386279499,6.0330005,3315.1,3313.8,1.22453541]
[1768386280114,0.002,3315.2,3313.9,3.01759256]
[1768386280313,0.002,3315.2,3313.5,0.72608134]
[1768386280314,0.09180629,3314.9,3314.0,0.414]
[1768386280510,1.27259989,3314.9,3314.0,0.414]
[1768386280818,0.002,3314.8,3314.0,0.414]
[1768386281420,1.27259989,3314.7,3313.5,0.72608134]
[1768386281715,0.09180629,3314.3,3313.6,0.414]
[1768386282212,6.03463882,3314.2,3313.6,0.414]
[1768386282397,0.61264451,3314.1,3313.6,0.414]
[1768386284220,3.0175015,3314.0,3313.6,0.414]
[1768386284528,6.035003,3314.0,3312.9,1.22453541]
[1768386284726,6.035003,3314.0,3313.0,0.414]
[1768386284931,0.09180629,3313.9,3313.0,0.414]
[1768386285130,0.73076029,3313.8,3313.0,0.414]
[1768386285425,1.91155389,3313.8,3313.0,0.414]
[1768386285632,1.1807936,3313.7,3313.0,0.414]
[1768386286929,3.01786576,3313.6,3313.0,0.414]
[1768386287132,1.1807936,3313.5,3312.8,0.001]
[1768386287332,1.1807936,3313.3,3312.8,0.001]
[1768386287498,1.1807936,3313.3,3312.9,0.414]
[1768386287698,1.27259989,3313.3,3312.8,0.001]
[1768386287933,1.27259989,3313.3,3312.8,0.415]
[1768386288231,1.1807936,3313.0,3311.5,3.01976745]
[1768386288417,1.1807936,3313.0,3312.0,3.01928359]
[1768386288623,1.1807936,3313.0,3312.1,3.01921985]
[1768386288817,7.21780044,3312.9,3312.2,0.414]
[1768386289023,4.19929702,3312.9,3312.2,0.414]
[1768386289831,4.19929702,3312.9,3312.2,3.46332802]
[1768386290214,4.93025017,3312.9,3312.2,3.43313661]
[1768386290716,3.74945657,3312.9,3312.2,3.43313661]
[1768386290916,6.76795999,3312.9,3312.2,0.414]
[1768386292942,9.78646341,3312.9,3311.7,1.22453541]
[1768386293106,10.96725701,3312.9,3312.1,0.414]
[1768386293438,1.10590633,3312.8,3312.1,0.414]
[1768386294107,2.28669993,3312.8,3312.1,0.414]
[1768386294518,1.1807936,3312.7,3312.1,0.414]
[1768386294933,6.03737132,3312.7,3312.1,0.414]
[1768386295435,0.002,3312.6,3312.1,0.414]
[1768386296539,1.27259989,3312.5,3311.8,0.414]
[1768386296940,6.03791812,3312.4,3311.6,0.414]
[1768386297842,9.05687718,3312.4,3311.6,0.414]
[1768386299045,0.09180629,3312.3,3311.6,0.414]
[1768386299434,9.05687718,3312.4,3311.6,0.414]
[1768386299633,1.03294771,3312.3,3311.6,0.414]
[1768386300842,1.03294771,3312.3,3311.3,3.01995699]
[1768386301038,6.0382827,3312.2,3311.6,0.414]
[1768386302317,6.64211097,3312.2,3311.5,0.414]
[1768386302736,6.64211097,3312.2,3310.7,1.22453541]
[1768386302737,1.27259989,3312.1,3310.7,1.22453541]
[1768386302942,10.23876461,3312.0,3310.8,0.414]
[1768386303212,1.27259989,3311.9,3310.4,1.22453541]
[1768386303434,1.5927936,3311.8,3310.6,3.02059242]
[1768386303637,2.66705069,3311.8,3310.6,3.79160366]
[1768386303835,2.66705069,3311.8,3310.7,3.02049908]
[1768386305050,6.03919436,3311.7,3310.6,3.79156723]
[1768386305247,6.03919436,3311.7,3310.6,0.77101124]
[1768386305549,10.29848591,3311.7,3310.6,0.77101124]
[1768386306249,6.03791812,3312.4,3310.8,1.22954798]
[1768386306448,6.03791812,3312.4,3311.0,1.22954798]
[1768386306655,6.03791812,3312.4,3311.2,1.22954798]
[1768386307354,6.03791812,3312.4,3311.4,3.01987074]
[1768386308618,6.03791812,3312.4,3311.3,3.01992387]
[1768386308959,6.03791812,3312.4,3311.4,0.72695028]
[1768386309618,6.03791812,3312.4,3311.4,3.74681156]
[1768386311249,0.002,3312.6,3311.7,1.22954798]
[1768386311456,1.14788808,3313.1,3311.9,1.22954798]
[1768386311457,3.01833295,3313.1,3311.9,1.22954798]
[1768386311748,3.02051867,3312.9,3311.9,1.22954798]
[1768386311948,0.09180629,3312.6,3311.8,0.03019506]
[1768386312149,0.09180629,3312.2,3311.7,0.414]
[1768386312449,0.09180629,3312.0,3311.4,3.01987073]
[1768386312651,0.09180629,3312.0,3311.4,0.34338707]
[1768386313443,3.01941483,3311.9,3311.1,0.03020144]
[1768386313647,0.09180629,3312.2,3311.4,3.01986182]
[1768386313956,0.09180629,3312.0,3311.2,0.414]
[1768386314131,0.09180629,3312.0,3311.2,3.43398354]
[1768386314822,0.09180629,3311.8,3311.2,0.414]
[1768386315025,0.09180629,3312.0,3311.2,0.414]
[1768386315541,3.01941483,3311.9,3311.2,3.43403616]
[1768386316253,3.01941483,3311.9,3311.2,4.20241241]
[1768386316634,6.12990669,3312.3,3311.2,7.22246556]
[1768386316852,6.54190669,3312.3,3311.2,7.22246556]
[1768386317157,0.09180629,3312.1,3311.2,7.22246556]
[1768386317355,0.09180629,3311.7,3311.2,0.76837625]
[1768386317556,0.09180629,3311.7,3310.7,0.414]
[1768386317755,0.09180629,3311.7,3310.8,6.07104022]
[1768386317756,3.01968836,3311.6,3310.8,6.07104022]
[1768386317955,3.01968836,3311.6,3310.8,6.04083604]
[1768386318159,3.01968836,3311.6,3310.8,6.68631964]
[1768386318456,0.09180629,3311.4,3310.8,0.6454836]
[1768386318658,0.09180629,3311.5,3310.7,0.414]
[1768386318955,6.03912656,3311.8,3310.8,1.25975216]
[1768386319159,6.03912656,3311.8,3310.8,0.03020418]
[1768386319536,6.03912656,3311.8,3310.8,0.414]
[1768386319537,0.09180629,3311.5,3310.8,0.414]
[1768386319861,3.01987074,3311.4,3310.8,0.414]
[1768386320170,3.01987074,3311.4,3310.8,3.43441428]
[1768386320472,3.01987074,3311.4,3310.8,3.43441319]
[1768386320676,3.11159745,3311.5,3310.8,3.43441319]
[1768386321279,0.31115974,3311.4,3310.8,0.414]
[1768386321778,3.33109749,3311.4,3310.8,3.43440948]
[1768386322067,3.01993775,3311.4,3310.8,0.414]
[1768386322271,3.01981298,3311.5,3310.8,3.43441736]
[1768386322576,3.11161927,3311.5,3310.9,0.03020326]
[1768386323075,0.09180629,3311.3,3310.8,0.414]
[1768386323648,3.02005315,3311.2,3310.8,0.414]
[1768386323963,0.09180629,3310.9,3310.1,1.21491494]
[1768386324283,3.63332725,3311.2,3310.4,3.02077077]
[1768386324654,0.09180629,3311.1,3310.4,3.02077077]
[1768386324860,0.09180629,3311.1,3310.3,3.02085561]
[1768386325057,6.6533804,3311.2,3310.1,1.21491494]
[1768386325263,0.76632496,3311.1,3310.3,3.02083689]
[1768386325573,0.76632496,3311.1,3310.1,4.2359708]
[1768386325574,0.76632496,3311.1,3310.2,3.02093115]
[1768386325775,1.96369775,3311.1,3310.4,3.02073077]
[1768386325954,4.89206116,3311.1,3310.1,6.04211352]
[1768386326155,0.67451867,3311.1,3310.2,0.03020965]
[1768386326356,1.19837279,3311.4,3310.2,0.03020965]
[1768386327060,1.19837279,3311.4,3310.2,1.24512459]
[1768386327256,3.02089005,3311.4,3310.2,1.24512459]
[1768386327976,0.001,3311.4,3310.4,1.21491494]
[1768386328177,0.001,3311.4,3310.6,1.21491494]
[1768386329150,0.001,3311.4,3310.7,1.24512003]
[1768386330159,0.001,3311.4,3310.8,3.02041802]
[1768386331895,0.001,3311.4,3310.7,4.26559849]
[1768386332094,1.28917908,3312.2,3310.9,1.2451182]
[1768386332250,3.01923251,3312.1,3311.1,3.02014436]
[1768386332450,3.01923251,3312.1,3311.1,4.26526074]
[1768386332851,3.01923251,3312.1,3311.1,7.2854051]
[1768386333083,3.01923251,3312.1,3311.1,7.25520366]
[1768386333390,6.03848536,3312.1,3311.1,5.00197967]
[1768386333553,7.23585815,3312.1,3311.1,3.81726617]
[1768386333966,7.23585815,3312.1,3311.1,6.83741053]
[1768386334169,4.2166053,3312.1,3311.1,6.80720909]
[1768386334481,4.2166053,3312.1,3311.2,0.03020053]
[1768386334654,1.19737279,3312.0,3311.2,0.75534149]
[1768386334856,1.19737279,3312.0,3310.7,0.414]
[1768386334857,1.28917908,3311.6,3310.7,0.414]
[1768386335068,1.28917908,3311.6,3310.8,3.02036663]
[1768386335288,1.28917908,3311.6,3310.7,3.43446097]
[1768386335453,1.28917908,3311.6,3310.8,3.02040666]
[1768386335809,1.28917908,3311.6,3310.7,0.414]
[1768386335958,1.28917908,3311.6,3310.7,3.43443821]
[1768386336152,0.03774724,3311.5,3311.1,0.002]
[1768386336351,1.28917908,3311.6,3311.1,0.002]
[1768386336352,1.17785923,3311.3,3311.1,0.002]
[1768386336908,3.01987074,3311.4,3311.1,0.002]
[1768386337681,3.01977955,3311.5,3311.1,0.002]
[1768386337882,3.75069483,3311.5,3311.1,0.002]
[1768386339387,3.01977955,3311.5,3311.1,0.002]
[1768386339586,3.01961497,3311.7,3311.1,0.002]
[1768386340151,6.03922994,3311.7,3311.1,0.002]
[1768386340497,3.01961497,3311.7,3311.1,0.002]
[1768386340859,0.09180629,3311.8,3311.1,0.002]
[1768386340860,1.26966552,3311.8,3311.1,0.002]
[1768386341059,1.17785923,3311.8,3311.1,0.002]
[1768386341268,1.26966552,3311.9,3311.1,0.002]
[1768386341483,1.17785923,3311.7,3311.1,0.002]
[1768386341692,4.1975321,3311.7,3311.1,0.002]
[1768386342459,6.03934574,3311.7,3311.1,0.002]
[1768386342860,3.01967287,3311.7,3311.1,0.002]
[1768386343686,3.1877165,3311.8,3311.1,0.002]
[1768386344185,0.4457382,3311.7,3311.1,0.002]
[1768386345689,3.46535066,3311.7,3311.1,0.002]
[1768386346490,4.19682747,3312.4,3311.1,0.002]
[1768386346721,0.412,3312.2,3311.1,1.14796947]
[1768386347487,0.412,3312.2,3311.2,0.414]
[1768386347670,1.17785923,3312.0,3311.1,0.002]
[1768386347877,0.75875321,3311.9,3311.1,0.002]
[1768386348064,0.8505595,3311.9,3311.1,0.002]
[1768386348494,0.8505595,3311.9,3311.1,3.02210239]
[1768386349596,3.019506,3311.8,3311.1,3.02210239]
[1768386349793,6.039012,3311.8,3311.1,0.002]
[1768386349999,6.84574963,3311.8,3311.1,0.002]
[1768386351390,3.82624363,3311.8,3311.1,0.002]
[1768386352604,6.84574963,3311.8,3311.1,0.002]
[1768386353497,1.26966552,3311.7,3311.1,0.002]
[1768386353665,3.83128116,3311.6,3311.1,0.002]
[1768386355602,0.09180629,3311.4,3311.1,0.002]
[1768386355788,3.01996194,3311.3,3311.1,0.002]
[1768386356373,3.01978976,3311.5,3311.1,0.002]
[1768386356903,4.19764899,3311.5,3311.1,0.002]
[1768386357106,0.81207122,3311.4,3311.1,0.002]
[1768386357782,3.83201697,3311.4,3311.1,0.002]
[1768386358595,3.01982918,3311.5,3311.1,0.002]
[1768386359996,3.01968836,3311.6,3311.1,0.002]
[1768386360522,6.03937672,3311.6,3311.1,0.002]
[1768386360718,3.01968836,3311.6,3311.1,0.002]
[1768386361019,3.78260579,3311.6,3311.1,0.002]
[1768386361327,3.01968836,3311.6,3311.1,0.002]
[1768386361526,6.03937672,3311.6,3311.1,0.002]
[1768386361696,1.17785923,3311.5,3311.1,0.002]
[1768386362219,3.01987074,3311.4,3311.1,0.002]
[1768386362398,6.03974148,3311.4,3311.1,0.002]
[1768386362728,3.01987074,3311.4,3311.1,0.002]
[1768386363731,0.30198707,3311.3,3311.1,0.002]
[1768386364421,3.32197596,3311.3,3311.1,0.002]
[1768386364922,0.002,3311.8,3311.2,6.56540368]
[1768386365086,3.02154858,3311.8,3311.1,1.14796947]
[1768386365717,6.04109716,3311.8,3311.1,0.002]
[1768386366055,3.02154858,3311.8,3311.1,0.002]
[1768386366199,3.02154858,3311.8,3311.1,1.04563388]
[1768386366399,0.002,3311.8,3311.2,1.04363388]
[1768386366804,0.002,3311.8,3311.3,0.0150998]
[1768386367050,0.002,3311.8,3311.2,1.04363388]
[1768386368143,0.002,3311.8,3311.3,0.0150998]
[1768386368804,0.002,3311.8,3311.4,3.01987074]
[1768386369614,0.002,3311.8,3311.3,4.07866583]
[1768386371753,1.12530489,3311.6,3311.1,0.002]
[1768386371922,1.12530489,3311.4,3310.7,3.02045121]
[1768386372442,1.12530489,3311.4,3310.6,3.02054319]
[1768386372741,0.25471741,3311.5,3310.0,3.02110785]
[1768386372742,1.21711118,3310.9,3310.0,3.02110785]
[1768386372946,1.21711118,3310.9,3309.8,3.0213073]
[1768386372947,3.02041802,3310.8,3309.9,3.02121072]
[1768386373145,4.14572291,3310.8,3309.9,3.02121072]
[1768386373371,1.12530489,3310.7,3309.8,0.414]
[1768386373733,1.12530489,3310.7,3309.8,3.02131305]
[1768386374250,0.412,3310.7,3309.8,9.58671673]
[1768386374447,3.47619031,3310.8,3309.9,1.04363388]